[Event "California State Seniors 2024"]
[Site "Berkeley"]
[Date "2024.04.15"]
[Round "5.1"]
[White "Winslow, Elliott"]
[Black "Taylor, Timothy"]
[Result "0-1"]
[ECO "D41"]
[WhiteElo "2003"]
[BlackElo "2114"]
[Annotator "TA"]
[PlyCount "103"]
[EventDate "2024.04.13"]
[EventType "swiss"]
[EventCountry "USA"]
[SourceTitle "playchess.com"]
[Source "ChessBase"]
[SourceQuality "1"]
[TimeControl "5400+30"]

{[%evp 12,103,25,0,31,1,20,8,16,18,21,18,18,-8,19,0,0,4,1,-8,0,0,-6,0,0,-52,0,-40,-16,-65,-10,-5,-8,-147,-129,-277,-246,-226,-231,-233,-220,-211,-210,-209,-187,-181,-166,-162,-167,-170,-149,-260,-158,-158,-158,-158,-158,-143,-135,-163,-151,-191,-191,-186,-175,-176,-168,-172,-186,-201,-195,-265,-242,-425,-394,-425,-435,-446,-457,-473,-506,-550,-521,-559,-527,-1013,-1078,-1050,-1125,-1265,-1199,-29979,-29980,-29979]} 1. d4 {[%emt 0:07:13]} d5 {[%emt 0:00:25]} 2. c4 {[%emt 0:00:11]} e6 {[%emt 0:00:13]} 3. Nc3 {[%emt 0:02:09]} Nf6 {[%emt 0:00:05]} 4. cxd5 {[%emt 0:00:30]} Nxd5 {[%emt 0:00:04]} 5. Nf3 {[%emt 0:01:04]} c5 {[%emt 0:00:25]} 6. e3 {[%emt 0:01:14]} Nc6 {[%emt 0:02:14]} 7. Bc4 {[%emt 0:01:00]} Nb6 {[%emt 0:03:43] [#] ...cxd4 is the strong threat.} 8. Be2 {[%emt 0:00:46]} Be7 {[%emt 0:00:54]} 9. O-O {[%emt 0:00:28]} O-O {[%emt 0:00:50] The position is equal.} 10. dxc5 {[%emt 0:09:59]} Bxc5 {[%emt 0:02:29]} 11. b3 {[%emt 0:01:41]} e5 {[%emt 0:13:57]} 12. Bb2 {[%emt 0:02:10]} f6 {[%emt 0:00:28]} 13. Rc1 {[%emt 0:05:52][%cal Oc3d5,Ba1c1,Bc1c5,Bc5a5][%mdl 32]} Be6 {[%emt 0:07:25]} 14. Ne4 {[%emt 0:06:28]} Be7 {[%emt 0:00:14]} 15. Nc5 {[%emt 0:04:24]} Bxc5 {[%emt 0:04:05]} 16. Rxc5 {[%emt 0:00:11]} Qxd1 {[%emt 0:00:31]} 17. Rxd1 {[%emt 0:01:23]} Rfd8 {[%emt 0:01:40]} 18. Kf1 {[%emt 0:19:56]} ({Better is} 18. Rxd8+ $11 Rxd8 19. h4) 18... Nb4 {[%emt 0:01:18]} (18... Rxd1+ $15 19. Bxd1 Nb4) 19. Ra5 {[%emt 0:00:55]} a6 {[%emt 0:05:40]} 20. Bc3 {[%emt 0:14:34]} (20. Rxd8+ $11 Rxd8 21. Ne1) 20... N6d5 {[%emt 0:08:26]} (20... Rxd1+ $15 21. Bxd1 Nc6) 21. Bd2 {[%emt 0:03:29] And now e4 would win.} Rac8 {[%emt 0:11:17] Threatening ...Nc3.} 22. e4 {[%emt 0:01:17]} (22. Ra4 $11 {remains equal.} Nc6 23. Ne1) 22... Nc3 $17 {[%emt 0:01:36]} 23. Ra1 {[%emt 0:03:33] This costs White the game.} (23. Bxc3 $17 {is the only way for White.} Rxd1+ 24. Bxd1 Rxc3 25. Ke2) 23... b6 {[%emt 0:03:49]} 24. Rxa6 {[%emt 0:02:01]} Nxa6 {[%emt 0:00:34]} 25. Bxa6 {[%emt 0:00:12]} Ra8 {[%emt 0:01:31]} 26. Bxc3 {[%emt 0:00:38]} Rxa6 {[%emt 0:00:08]} 27. Nd2 {[%emt 0:01:11]} Rc8 {[%emt 0:04:21]} 28. Bb4 {[%emt 0:00:19]} b5 {[%emt 0:01:03]} 29. a3 {[%emt 0:01:07]} Rac6 {[%emt 0:01:10]} 30. Ke2 {[%emt 0:01:36]} Rc1 {[%emt 0:02:03]} 31. Ra2 {[%emt 0:00:26]} (31. Rxc1 $17 Rxc1 32. f3) 31... R1c2 {[%emt 0:00:33]} 32. Rxc2 {[%emt 0:01:17]} Rxc2 {[%emt 0:00:05][%mdl 4096] Endgame. KRB-KBN} 33. Kd1 {[%emt 0:00:36]} Rc8 {[%emt 0:01:09] Black is more active.} 34. Ke2 {[%emt 0:00:36]} Kf7 {[%emt 0:00:31]} 35. f3 {[%emt 0:00:42]} Ke8 {[%emt 0:00:18]} 36. g3 {[%emt 0:00:20]} Rc1 {[%emt 0:01:51]} 37. Kf2 {[%emt 0:00:25]} Kd7 {[%emt 0:02:05]} 38. g4 {[%emt 0:00:14]} g6 {[%emt 0:01:46]} 39. h3 {[%emt 0:00:59]} f5 {[%emt 0:02:41]} 40. exf5 {[%emt 0:00:29]} gxf5 {[%emt 0:00:07]} 41. g5 {[%emt 0:00:12]} (41. a4 $142) 41... f4 {[%emt 0:02:05]} 42. Ne4 $2 {[%emt 0:00:15]} (42. h4) 42... Bf5 $19 {[%emt 0:01:42][%cal Of5e4] [#] Threatens to win with ...Bxe4!} 43. Nf6+ {[%emt 0:00:35]} Ke6 {[%emt 0:00:21]} 44. h4 {[%emt 0:00:20]} Rb1 {[%emt 0:02:35]} 45. Ne8 {[%emt 0:00:27]} Bd3 {[%emt 0:01:05]} (45... Rxb3 46. Ng7+ Kf7 47. Nxf5 $11) 46. h5 {[%emt 0:00:46]} Rxb3 {[%emt 0:02:07] aiming for ...Rb2+.} 47. g6 {[%emt 0:02:22]} hxg6 {[%emt 0:00:59]} 48. hxg6 {[%emt 0:00:20]} Bxg6 {[%emt 0:00:47] ( -> ...Rxb4)} 49. Nc7+ {[%emt 0:00:54]} Kf5 {[%emt 0:01:13]} 50. Nxb5 {[%emt 0:00:09]} Bh5 {[%emt 0:00:28]} 51. Nc3 {[%emt 0:00:18]} Rb2+ {[%emt 0:00:57]} 52. Kf1 {[%emt 0:06:17] Weighted Error Value: White=0.56/Black=0.13 (very precise) .  Mistake:       	White=7     	Black=2      Inaccurate:     	White=4     	Black=2      OK:         	White=10    	Black=15     Best:        	White=1     	Black=2} 0-1

[Event "California State Seniors 2024"]
[Site "Berkeley"]
[Date "2024.04.15"]
[Round "5.2"]
[White "Gaffagan, Steven"]
[Black "Cruz, Michael Anderson Car"]
[Result "1-0"]
[ECO "B00"]
[WhiteElo "1960"]
[BlackElo "1939"]
[Annotator "TA"]
[PlyCount "49"]
[EventDate "2024.04.13"]
[EventType "swiss"]
[EventCountry "USA"]
[SourceTitle "playchess.com"]
[Source "ChessBase"]
[SourceQuality "1"]
[TimeControl "5400+30"]

{[%evp 9,49,51,72,75,66,49,91,57,49,15,18,24,22,-12,23,0,7,26,2,-14,164,169,166,130,233,199,264,261,270,273,264,275,270,-144,-119,-148,51,58,54,0,29991,29992]} 1. e4 {[%emt 0:07:31]} b6 {[%emt 0:00:28]} 2. d4 {[%emt 0:00:30]} Bb7 {[%emt 0:00:10]} 3. f3 {[%emt 0:01:07]} g6 {[%emt 0:00:19]} 4. Be3 {[%emt 0:01:23]} Bg7 {[%emt 0:00:28]} 5. Nc3 {[%emt 0:05:14]} d6 {[%emt 0:00:55]} 6. Qd2 {[%emt 0:02:28]} Nd7 {[%emt 0:01:01]} 7. g4 {[%emt 0:06:29]} e6 {[%emt 0:00:54]} 8. h4 {[%emt 0:02:37] White is better.} h5 {[%emt 0:03:36]} 9. g5 {[%emt 0:00:18]} Ne7 {[%emt 0:05:07]} 10. Nge2 {[%emt 0:10:36]} a6 {[%emt 0:10:33]} 11. Bh3 {[%emt 0:11:30]} c5 {[%emt 0:05:47]} 12. O-O {[%emt 0:04:17]} O-O {[%emt 0:02:08]} 13. Rad1 {[%emt 0:03:26]} d5 {[%emt 0:29:21]} 14. exd5 {[%emt 0:00:16][%cal Be4d5,Bd5e6,Be6f7][%mdl 32]} cxd4 $2 {[%emt 0:19:04]} (14... exd5 15. f4 $14) (14... Bxd5 $11 15. dxc5 Nxc5) 15. dxe6 $18 {[%emt 0:04:57]} Ne5 {[%emt 0:02:12]} 16. exf7+ {[%emt 0:00:35]} (16. Qxd4 Nxf3+ (16... Bxf3 $2 17. Qxe5 Bxe5 18. Rxd8 $18) 17. Rxf3 Bxd4 18. Nxd4 Qc7 $19 (18... Bxf3 $2 19. Nxf3 Qb8 20. Ne4 $19)) 16... Kh7 {[%emt 0:00:31]} (16... Rxf7 $16 17. Nxd4 N7c6) 17. Nxd4 {[%emt 0:03:18] Hoping for f4.} (17. Qxd4 Nxf3+ (17... Nxf7 $2 18. Qxd8 Nxd8 19. Bxb6 $18) 18. Rxf3 Bxd4 19. Rxd4 Bxf3 $11) 17... Nc4 {[%emt 0:03:18]} (17... Rxf7 $142 18. Qe2 Qc7) 18. Qe2 {[%emt 0:03:44]} Qc7 {[%emt 0:00:18]} 19. Bf2 {[%emt 0:12:29] [#] Dodges Qg3+. Strongly threatening Ne6.} Nxb2 {[%emt 0:01:57]} 20. Ne6 {[%emt 0:00:21]} Qxc3 {[%emt 0:00:23]} 21. Nxg7 $2 {[%emt 0:00:08]} (21. Nxf8+ $6 Rxf8 22. Rd7 (22. Qxe7 $2 Qxf3 $19) 22... Nd5 $16 (22... Bxf3 $2 23. Qxe7 Bc6 24. Bf5 $18)) ({White must play} 21. Rd7 $18 Bxf3 22. Nxf8+ Rxf8 23. Qxe7) 21... Nxd1 $17 {[%emt 0:01:08]} 22. Rxd1 {[%emt 0:09:02] And now Nxh5 would win.} Bxf3 {[%emt 0:02:44]} (22... Rxf7 $17 23. Nxh5 gxh5) 23. Qxe7 $14 {[%emt 0:05:01] White threatens Ne8 and mate.} Bxd1 {[%emt 0:00:21]} 24. Ne6 {[%emt 0:00:19]} (24. Ne8 $1 $14 Qxh3 25. Qf6 (25. Qxf8 Qg4+ 26. Kh2 Qf4+ 27. Bg3 Qd2+ 28. Kg1 Qd4+ 29. Kf1 Qc4+ 30. Kf2 Qd4+ 31. Kf1 Qc4+ 32. Kf2 Qd4+ 33. Kg2 Qd5+ 34. Kg1 Qd4+ 35. Bf2 Qg4+ 36. Kh2 Qf4+ 37. Kg1 Qg4+ $11) 25... Raxe8 (25... Bxc2 26. Qg7#) (25... Qg4+ 26. Kh2 $14) 26. fxe8=Q Qg4+ (26... Rxf6 $2 27. Qe7+ Kg8 28. gxf6 $18) 27. Kh2 Rxe8 (27... Rxf6 $2 28. gxf6 Qf4+ 29. Kg1 $18) 28. Qf7+ Kh8 29. Qxe8+ Kg7 30. Qe5+ Kh7 31. Qc7+ Kg8 32. Qd8+ Kh7 33. Qf6) 24... Bf3 $2 {[%emt 0:06:03][%mdl 8192] [#]} 25. Nxf8+ {[%emt 0:01:02] Weighted Error Value: White=0.36/Black=0.62.  Loses game:     	---       	Black=2      Missed win:     	White=1     	---        Mistake:       	White=1     	Black=3      Inaccurate:     	White=3     	Black=2      OK:         	White=3     	Black=7      Best:        	White=3     	Black=3} 1-0

[Event "California State Seniors 2024"]
[Site "Berkeley"]
[Date "2024.04.15"]
[Round "5.3"]
[White "Tia, Rudy Jr."]
[Black "Watson, Farid"]
[Result "1-0"]
[ECO "A01"]
[WhiteElo "1798"]
[BlackElo "1867"]
[Annotator "NA RC"]
[PlyCount "81"]
[EventDate "2024.04.13"]
[EventType "swiss"]
[EventCountry "USA"]
[SourceTitle "playchess.com"]
[Source "ChessBase"]
[SourceQuality "1"]
[TimeControl "5400+30"]

{[%evp 10,81,3,32767,32767,-21,0,32767,3,32767,32767,2,10,32767,32767,32767,0,0,-11,32767,-4,0,32767,-22,20,1,0,-41,32767,32767,32767,-10,32767,-53,0,-13,0,0,27,31,33,39,30,14,123,80,32767,32767,32767,76,85,32767,144,121,125,130,130,125,289,297,969,34,34,44,35,44,588,704,979,1212,1253,886,886,1316]} 1. b3 {[%emt 0:00:03]} g6 {[%emt 0:00:54]} 2. Bb2 {[%emt 0:00:06]} Nf6 {[%emt 0:00:04]} 3. g3 {[%emt 0:01:16]} Bg7 {[%emt 0:00:08]} 4. Bg2 {[%emt 0:00:11]} O-O {[%emt 0:00:23]} 5. d3 {[%emt 0:00:21]} d6 {[%emt 0:04:57]} 6. e3 {[%emt 0:00:31] A01: Nimzowitsch-Larsen Opening.} Nc6 {[%emt 0:03:32]} 7. Nd2 {[%emt 0:00:25]} Bg4 {[%emt 0:10:31]} 8. Ne2 {[%emt 0:00:14]} Qc8 {[%emt 0:00:11]} 9. h3 {[%emt 0:00:06]} Bd7 {[%emt 0:00:14]} 10. a3 {[%emt 0:00:11]} a5 {[%emt 0:02:23]} 11. Qb1 {[%emt 0:03:01]} Rb8 {[%emt 0:01:23]} 12. Qa2 {[%emt 0:00:12]} b5 {[%emt 0:01:09]} 13. Rc1 {[%emt 0:00:47]} Nd8 {[%emt 0:11:36]} 14. c4 {[%emt 0:02:27]} b4 {[%emt 0:01:51]} 15. axb4 {[%emt 0:05:10]} axb4 {[%emt 0:00:03]} 16. c5 {[%emt 0:00:45]} Ne6 {[%emt 0:02:01]} 17. c6 {[%emt 0:10:24]} Be8 $1 {[%emt 0:00:44]} 18. d4 {[%emt 0:00:07]} (18. Bxf6 $11 {should be considered.} Bxf6 19. d4) 18... Ra8 {[%emt 0:01:01]} 19. Qb1 {[%emt 0:00:17]} Qa6 {[%emt 0:04:43]} 20. Qc2 {[%emt 0:06:33]} d5 {[%emt 0:06:04]} 21. e4 {[%emt 0:06:14]} Nxe4 {[%emt 0:10:10]} (21... dxe4 $15 22. Nxe4 Nd5) 22. Nxe4 {[%emt 0:01:01]} dxe4 {[%emt 0:00:05]} 23. Bxe4 {[%emt 0:00:34]} Ng5 {[%emt 0:04:10]} 24. Bg2 {[%emt 0:02:01]} f5 {[%emt 0:00:22]} 25. O-O {[%emt 0:04:27]} Bf7 {[%emt 0:08:33]} 26. Nf4 {[%emt 0:06:15]} Rad8 {[%emt 0:01:55]} (26... Qa2 $11) 27. Rfe1 {[%emt 0:04:05]} Bf6 {[%emt 0:05:20]} 28. h4 {[%emt 0:04:06]} Ne4 {[%emt 0:00:05]} 29. Bxe4 {[%emt 0:06:20]} fxe4 {[%emt 0:00:05]} 30. Rxe4 {[%emt 0:00:07]} Rd6 {[%emt 0:02:42] [#]} (30... Qb5 $142) 31. d5 $1 {[%emt 0:02:43]} Bxd5 {[%emt 0:00:59]} 32. Nxd5 {[%emt 0:01:17]} ({Weaker is} 32. Rxb4 Rxc6 33. Qd2 Rxc1+ 34. Qxc1 Ba8 35. Bxf6 Qxf6 $11) 32... Rxd5 {[%emt 0:00:10]} 33. Bxf6 {[%emt 0:00:09]} Rxf6 $2 {[%emt 0:06:50]} (33... exf6 $16 34. Rxb4 Qd3 35. Qxd3 Rxd3) 34. Rxe7 {[%emt 0:00:41]} ({Less strong is} 34. Rxb4 Rdf5 $14) 34... Rdf5 $2 {[%emt 0:00:48]} (34... Rf7 35. Rxf7 Kxf7) 35. Qc4+ $2 {[%emt 0:06:37]} (35. Rd1 $18 Qa7 36. Qb2 (36. Rd8+ Rf8 $18) 36... Qxf2+ 37. Qxf2 Rxf2 38. Rxc7) 35... Qxc4 {[%emt 0:00:56]} 36. Rxc4 {[%emt 0:00:05]} Rxf2 {[%emt 0:00:22]} 37. Rxb4 {[%emt 0:00:05]} Rf8 $2 {[%emt 0:01:40]} 38. Rxc7 {[%emt 0:02:31]} h5 $18 {[%emt 0:05:43] [#]} 39. Rf4 $1 {[%emt 0:01:16]} Rc2 {[%emt 0:00:36]} 40. Rxf8+ {[%emt 0:01:10]} Kxf8 {[%emt 0:00:01]} 41. b4 {[%emt 0:00:44]} 1-0